fUST/lending_fUST_20240626
["ID","MTS","AMOUNT","RATE_DAILY","PERIOD"]
[330407200,1719352241033,-5530.44,0.00016438,2]
[330407202,1719352241043,-500.0,0.00016438,2]
[330407204,1719352241052,-500.0,0.00016438,2]
[330407206,1719352241062,-512.0,0.00016438,2]
[330407208,1719352241071,-861.64,0.00016438,2]
[330407210,1719352241081,-500.0,0.00016438,2]
[330407212,1719352241090,-500.0,0.00016438,2]
[330407214,1719352241100,-500.0,0.00016438,2]
[330407216,1719352241109,-500.0,0.00016438,2]
[330407218,1719352241119,-500.0,0.00016438,2]
[330407220,1719352241128,-500.0,0.00016438,2]
[330407222,1719352241137,-500.0,0.00016438,2]
[330407224,1719352241146,-500.0,0.00016438,2]
[330407226,1719352241155,-547.16,0.00016438,2]
[330407228,1719352241164,-524.7508497,0.00016438,2]
[330407230,1719352241174,-500.0,0.00016438,2]
[330407232,1719352241184,-500.0,0.00016438,2]
[330407234,1719352241193,-500.0,0.00016438,2]
[330407236,1719352241203,-500.0,0.00016438,2]
[330407238,1719352241212,-500.0,0.00016438,2]
[330407240,1719352241222,-500.0,0.00016438,2]
[330407242,1719352241231,-205.69006155,0.00016438,2]
[330407244,1719352241240,-500.0,0.00016438,2]
[330407246,1719352241249,-507.47,0.00016438,2]
[330407248,1719352241259,-500.0,0.00016438,2]
[330407250,1719352241268,-891.75,0.00016438,2]
[330407252,1719352241277,-1712.99,0.00016438,2]
[330407254,1719352241286,-668.48,0.00016438,2]
[330407256,1719352241296,-3556.07,0.00016438,2]
[330407258,1719352241305,-596.22,0.00016438,2]
[330407260,1719352241315,-500.0,0.00016438,2]
[330407262,1719352241324,-500.0,0.00016438,2]
[330407264,1719352241334,-562.28,0.00016438,2]
[330407266,1719352241343,-891.79,0.00016438,2]
[330407268,1719352241352,-1293.48,0.00016438,2]
[330407270,1719352241361,-8226.7,0.00016438,2]
[330407272,1719352241370,-500.0,0.00016438,2]
[330407274,1719352241379,-1022.63,0.00016438,2]
[330407276,1719352241388,-694.76,0.00016438,2]
[330407278,1719352241397,-500.0,0.00016438,2]
[330407280,1719352241407,-1226.45,0.00016438,2]
[330407282,1719352241416,-500.0,0.00016438,2]
[330407284,1719352241427,-500.0,0.00016438,2]
[330407286,1719352241436,-1719.24,0.00016438,2]
[330407288,1719352241446,-631.74,0.00016438,2]
[330407290,1719352241455,-500.0,0.00016438,2]
[330407292,1719352241465,-500.0,0.00016438,2]
[330407294,1719352241474,-500.0,0.00016438,2]
[330407296,1719352241484,-500.0,0.00016438,2]
[330407298,1719352241493,-500.0,0.00016438,2]
[330407300,1719352241502,-500.0,0.00016438,2]
[330407302,1719352241511,-8292.76,0.00016438,2]
[330407304,1719352241520,-2493.22,0.00016438,2]
[330407306,1719352241530,-500.0,0.00016438,2]
[330407308,1719352241539,-500.0,0.00016438,2]
[330407310,1719352241549,-969.16,0.00016438,2]
[330407312,1719352241559,-500.0,0.00016438,2]
[330407314,1719352241568,-1134.18,0.00016438,2]
[330407316,1719352241577,-500.0,0.00016438,2]
[330407318,1719352241587,-500.0,0.00016438,2]
[330407320,1719352241597,-500.0,0.00016438,2]
[330407322,1719352241606,-500.0,0.00016438,2]
[330407324,1719352241615,-500.0,0.00016438,2]
[330407326,1719352241624,-1086.02,0.00016438,2]
[330407328,1719352241634,-2504.1,0.00016438,2]
[330407330,1719352241642,-987.7,0.00016438,2]
[330407332,1719352241651,-18667.8,0.00016438,2]
[330407334,1719352241661,-606.0479147,0.00016438,2]
[330407335,1719352241670,-500.0,0.00016438,2]
[330407337,1719352241680,-500.0,0.00016438,2]
[330407340,1719352241690,-3609.57,0.00016438,2]
[330407341,1719352241699,-500.0,0.00016438,2]
[330407344,1719352241709,-500.0,0.00016438,2]
[330407346,1719352241719,-500.0,0.00016438,2]
[330407348,1719352241729,-473.87871896,0.00016438,2]
[330407349,1719352241738,-500.0,0.00016438,2]
[330407352,1719352241747,-4574.61,0.00016438,2]
[330407354,1719352241757,-500.0,0.00016438,2]
[330407355,1719352241766,-611.69651806,0.00016438,2]
[330407358,1719352241776,-500.0,0.00016438,2]
[330407360,1719352241786,-500.0,0.00016438,2]
[330407362,1719352241796,-500.0,0.00016438,2]
[330407364,1719352241805,-798.68,0.00016438,2]
[330407366,1719352241815,-500.0,0.00016438,2]
[330407368,1719352241828,-500.0,0.00016438,2]
[330407369,1719352241838,-2926.4,0.00016438,2]
[330407371,1719352241847,-500.0,0.00016438,2]
[330407373,1719352241856,-996.2,0.00016438,2]
[330407375,1719352241866,-500.0,0.00016438,2]
[330407377,1719352241877,-500.0,0.00016438,2]
[330407379,1719352241886,-500.0,0.00016438,2]
[330407382,1719352241898,-228.87,0.00016481,2]
[330407383,1719352241908,-876.0,0.00016481,2]
[330407385,1719352241918,-151.075,0.00016481,2]
[330407388,1719352241929,-373.8816229,0.00016711,2]
[330407389,1719352241940,-21367.03368234,0.00016712,2]
[330407391,1719352241950,-500.0,0.00016712,2]
[330407392,1719352241959,-500.0,0.00016712,2]
[330407393,1719352241969,-500.0,0.00016712,2]
[330407394,1719352241979,-789.93,0.00016712,2]
[330407395,1719352241989,-500.0,0.00016712,2]
[330407396,1719352241999,-500.0,0.00016712,2]
[330407397,1719352242008,-500.0,0.00016712,2]
[330407398,1719352242018,-500.0,0.00016712,2]
[330407399,1719352242027,-710.53,0.00016712,2]
[330407400,1719352242037,-500.0,0.00016712,2]
[330407401,1719352242046,-500.0,0.00016712,2]
[330407402,1719352242056,-500.0,0.00016712,2]
[330407403,1719352242065,-500.0,0.00016712,2]
[330407404,1719352242074,-500.0,0.00016712,2]
[330407405,1719352242084,-500.0,0.00016712,2]
[330407406,1719352242093,-541.89994109,0.00016712,2]
[330407407,1719352242103,-500.0,0.00016712,2]
[330407408,1719352242114,-500.0,0.00016712,2]
[330407409,1719352242123,-547.54,0.00016712,2]
[330407410,1719352242132,-500.0,0.00016712,2]
[330407411,1719352242142,-536.68,0.00016712,2]
[330407412,1719352242151,-500.0,0.00016712,2]
[330407413,1719352242160,-923.21,0.00016712,2]
[330407414,1719352242170,-500.0,0.00016712,2]
[330407415,1719352242179,-500.0,0.00016712,2]
[330407416,1719352242188,-500.0,0.00016712,2]
[330407417,1719352242198,-500.0,0.00016712,2]
[330407418,1719352242207,-500.0,0.00016712,2]
[330407419,1719352242217,-356.43430424,0.00016712,2]
[330407420,1719352242226,-500.0,0.00016712,2]
[330407421,1719352242236,-500.0,0.00016712,2]
[330407422,1719352242245,-500.0,0.00016712,2]
[330407423,1719352242254,-1176.72,0.00016712,2]
[330407424,1719352242263,-500.0,0.00016712,2]
[330407426,1719352242282,-362.93960292,0.00016712,2]
[330407429,1719352242294,-500.0,0.00016712,2]
[330407431,1719352242303,-500.0,0.00016712,2]
[330407433,1719352242311,-500.0,0.00016712,2]
[330407435,1719352242321,-949.66,0.00016712,2]
[330407436,1719352242331,-500.0,0.00016712,2]
[330407439,1719352242340,-510.02,0.00016712,2]
[330407441,1719352242350,-528.31,0.00016712,2]
[330407443,1719352242360,-832.07,0.00016712,2]
[330407445,1719352242369,-500.0,0.00016712,2]
[330407447,1719352242379,-500.0,0.00016712,2]
[330407449,1719352242389,-500.0,0.00016712,2]
[330407451,1719352242399,-1329.02,0.00016712,2]
[330407453,1719352242408,-500.0,0.00016712,2]
[330407455,1719352242418,-500.0,0.00016712,2]
[330407457,1719352242428,-500.0,0.00016712,2]
[330407459,1719352242437,-500.0,0.00016712,2]
[330407461,1719352242446,-11273.72,0.00016712,2]
[330407463,1719352242456,-500.0,0.00016712,2]
[330407466,1719352242465,-500.0,0.00016712,2]
[330407469,1719352242475,-500.0,0.00016712,2]
[330407471,1719352242484,-1154.45,0.00016712,2]
[330407473,1719352242493,-500.0,0.00016712,2]
[330407475,1719352242503,-4146.95,0.00016712,2]
[330407477,1719352242512,-1023.26,0.00016712,2]
[330407479,1719352242522,-500.0,0.00016712,2]
[330407481,1719352242532,-500.0,0.00016712,2]
[330407483,1719352242542,-500.0,0.00016712,2]
[330407485,1719352242551,-500.0,0.00016712,2]
[330407487,1719352242561,-500.0,0.00016712,2]
[330407489,1719352242571,-500.0,0.00016712,2]
[330407491,1719352242580,-500.0,0.00016712,2]
[330407493,1719352242589,-500.0,0.00016712,2]
[330407495,1719352242599,-2514.12,0.00016712,2]
[330407497,1719352242609,-151.0,0.00016712,2]
[330407499,1719352242618,-500.0,0.00016712,2]
[330407501,1719352242627,-500.0,0.00016712,2]
[330407503,1719352242636,-500.0,0.00016712,2]
[330407505,1719352242645,-501.77,0.00016712,2]
[330407507,1719352242654,-500.0,0.00016712,2]
[330407509,1719352242664,-500.0,0.00016712,2]
[330407511,1719352242673,-500.0,0.00016712,2]
[330407513,1719352242684,-500.0,0.00016712,2]
[330407515,1719352242692,-500.0,0.00016712,2]
[330407518,1719352242705,-500.0,0.00016712,2]
[330407520,1719352242714,-1564.69,0.00016712,2]
[330407522,1719352242724,-500.0,0.00016712,2]
[330407524,1719352242733,-500.0,0.00016712,2]
[330407526,1719352242743,-500.0,0.00016712,2]
[330407528,1719352242751,-641.33,0.00016712,2]
[330407530,1719352242761,-366.27581196,0.00016712,2]
[330407566,1719352243096,-133.72418804,0.00016712,2]
[330407568,1719352243106,-500.0,0.00016712,2]
[330407571,1719352243115,-504.3,0.00016712,2]
[330407573,1719352243125,-500.0,0.00016712,2]
[330407575,1719352243134,-687.94796294,0.00016712,2]
[330407577,1719352243147,-57.04203706,0.00016712,2]
[330407579,1719352243156,-500.0,0.00016712,2]
[330407581,1719352243166,-500.0,0.00016712,2]
[330407583,1719352243175,-500.0,0.00016712,2]
[330407585,1719352243190,-5702.3,0.00016712,2]
[330407587,1719352243200,-500.0,0.00016712,2]
[330407589,1719352243212,-151.0,0.00016712,2]
[330407591,1719352243221,-500.0,0.00016712,2]
[330407593,1719352243230,-755.75,0.00016712,2]
[330407595,1719352243239,-500.0,0.00016712,2]
[330407597,1719352243249,-500.0,0.00016712,2]
[330407599,1719352243259,-500.0,0.00016712,2]
[330407601,1719352243268,-1541.52,0.00016712,2]
[330407603,1719352243278,-1534.14,0.00016712,2]
[330407605,1719352243287,-151.0,0.00016712,2]
[330407607,1719352243297,-776.32,0.00016712,2]
[330407609,1719352243306,-714.34,0.00016712,2]
[330407611,1719352243316,-500.0,0.00016712,2]
[330407613,1719352243325,-500.0,0.00016712,2]
[330407615,1719352243334,-500.0,0.00016712,2]
[330407617,1719352243344,-1648.25,0.00016712,2]
[330407619,1719352243354,-500.0,0.00016712,2]
[330407621,1719352243363,-486.60347692,0.00016712,2]
[330407623,1719352243373,-665.88,0.00016712,2]
[330407625,1719352243383,-500.0,0.00016712,2]
[330407628,1719352243393,-211.48428941,0.00016712,2]
[330407630,1719352243402,-500.0,0.00016712,2]
[330407632,1719352243412,-500.0,0.00016712,2]
[330407634,1719352243421,-151.0,0.00016712,2]
[330407636,1719352243431,-236.65237,0.00016712,2]
[330407638,1719352243440,-500.0,0.00016712,2]
[330407640,1719352243449,-500.0,0.00016712,2]
[330407642,1719352243458,-500.0,0.00016712,2]
[330407644,1719352243468,-500.0,0.00016712,2]
[330407646,1719352243477,-560.77,0.00016712,2]
[330407648,1719352243486,-500.0,0.00016712,2]
[330407650,1719352243495,-500.0,0.00016712,2]
[330407652,1719352243504,-1135.98022221,0.00016712,2]
[330407654,1719352243516,-35.98977779,0.00016712,2]
[330407656,1719352243525,-500.0,0.00016712,2]
[330407658,1719352243534,-463.40762739,0.00016712,2]
[330407660,1719352243546,-275.87237261,0.00016712,2]
[330407662,1719352243555,-241.7062952,0.00016712,2]
[330407664,1719352243567,-305.6637048,0.00016712,2]
[330407666,1719352243576,-2967.29,0.00016712,2]
[330407668,1719352243585,-485.03956545,0.00016712,2]
[330407670,1719352243594,-226.24930146,0.00016712,2]
[330407672,1719352243603,-500.0,0.00016712,2]
[330407674,1719352243613,-250.0,0.00016712,2]
[330407676,1719352243622,-4962.55,0.00016712,2]
[330407678,1719352243631,-605.57,0.00016712,2]
[330407680,1719352243640,-387.32216355,0.00016712,2]
[330407683,1719352243653,-112.67783645,0.00016712,2]
[330407685,1719352243664,-500.0,0.00016712,2]
[330407687,1719352243674,-500.0,0.00016712,2]
[330407689,1719352243684,-139.82800672,0.00016712,2]
[330407691,1719352243695,-5390.61199328,0.00016712,2]
[330407693,1719352243705,-439.55385918,0.00016712,2]
[330407695,1719352243714,-512.0,0.00016712,2]
[330407697,1719352243724,-861.64,0.00016712,2]
[330407699,1719352243733,-500.0,0.00016712,2]
[330407701,1719352243744,-571.09,0.00016712,2]
[330407703,1719352243753,-500.0,0.00016712,2]
[330407705,1719352243763,-500.0,0.00016712,2]
[330407707,1719352243772,-500.0,0.00016712,2]
[330407709,1719352243782,-500.0,0.00016712,2]
[330407711,1719352243791,-500.0,0.00016712,2]
[330407713,1719352243800,-547.16,0.00016712,2]
[330407715,1719352243810,-500.0,0.00016712,2]
[330407717,1719352243822,-500.0,0.00016712,2]
[330407719,1719352243834,-500.0,0.00016712,2]
[330407721,1719352243843,-500.0,0.00016712,2]
[330407723,1719352243853,-500.0,0.00016712,2]
[330407725,1719352243866,-500.0,0.00016712,2]
[330407727,1719352243876,-507.47,0.00016712,2]
[330407729,1719352243885,-500.0,0.00016712,2]
[330407731,1719352243897,-500.0,0.00016712,2]
[330407733,1719352243907,-891.75,0.00016712,2]
[330407735,1719352243916,-1712.99,0.00016712,2]
[330407737,1719352243926,-668.48,0.00016712,2]
[330407739,1719352243936,-3556.07,0.00016712,2]
[330407741,1719352243945,-596.22,0.00016712,2]
[330407743,1719352243954,-500.0,0.00016712,2]
[330407745,1719352243963,-562.28,0.00016712,2]
[330407747,1719352243973,-891.79,0.00016712,2]
[330407749,1719352243982,-1293.48,0.00016712,2]
[330407751,1719352243991,-8226.7,0.00016712,2]
[330407753,1719352244000,-500.0,0.00016712,2]
[330407755,1719352244009,-1022.63,0.00016712,2]
[330407757,1719352244019,-694.76,0.00016712,2]
[330407759,1719352244028,-151.0,0.00016712,2]
[330407761,1719352244038,-500.0,0.00016712,2]
[330407764,1719352244048,-1226.45,0.00016712,2]
[330407766,1719352244057,-460.02283617,0.00016712,2]
[330407767,1719352244066,-151.0,0.00016712,2]
[330407769,1719352244076,-500.0,0.00016712,2]
[330407771,1719352244086,-1719.24,0.00016712,2]
[330407774,1719352244096,-631.74,0.00016712,2]
[330407776,1719352244106,-500.0,0.00016712,2]
[330407778,1719352244116,-151.0,0.00016712,2]
[330407779,1719352244126,-500.0,0.00016712,2]
[330407782,1719352244136,-151.0,0.00016712,2]
[330407784,1719352244146,-500.0,0.00016712,2]
[330407786,1719352244155,-394.95898939,0.00016712,2]
[330407788,1719352244165,-500.0,0.00016712,2]
[330407790,1719352244174,-8292.76,0.00016712,2]
[330407792,1719352244184,-2493.22,0.00016712,2]
[330407794,1719352244193,-500.0,0.00016712,2]
[330407796,1719352244203,-969.16,0.00016712,2]
[330407798,1719352244212,-500.0,0.00016712,2]
[330407800,1719352244221,-1134.18,0.00016712,2]
[330407802,1719352244230,-500.0,0.00016712,2]
[330407804,1719352244240,-151.0,0.00016712,2]
[330407806,1719352244249,-500.0,0.00016712,2]
[330407808,1719352244259,-1086.02,0.00016712,2]
[330407810,1719352244269,-2504.1,0.00016712,2]
[330407812,1719352244278,-987.7,0.00016712,2]
[330407814,1719352244287,-18667.8,0.00016712,2]
[330407816,1719352244296,-500.0,0.00016712,2]
[330407818,1719352244306,-500.0,0.00016712,2]
[330407820,1719352244315,-863.8100712,0.00016712,2]
[330407828,1719352244382,-2240.27122362,0.00016712,2]
[330407855,1719352244583,-154.83742071,0.00016309,2]
[330407857,1719352244592,-500.0,0.00016438,2]
[330407859,1719352244601,-505.48870518,0.00016712,2]
[330407861,1719352244610,-151.0,0.00016712,2]
[330407863,1719352244620,-499.99710827,0.00016712,2]
[330407865,1719352244629,-151.0,0.00016712,2]
[330407867,1719352244639,-500.0,0.00016712,2]
[330407869,1719352244648,-500.0,0.00016712,2]
[330407871,1719352244658,-354.79837136,0.00016712,2]
[330407873,1719352244667,-4574.61,0.00016712,2]
[330407875,1719352244677,-500.0,0.00016712,2]
[330407877,1719352244688,-500.0,0.00016712,2]
[330407879,1719352244698,-500.0,0.00016712,2]
[330407881,1719352244708,-500.0,0.00016712,2]
[330407883,1719352244717,-500.0,0.00016712,2]
[330407885,1719352244726,-500.0,0.00016712,2]
[330407887,1719352244735,-798.68,0.00016712,2]
[330407889,1719352244745,-2926.4,0.00016712,2]
[330407891,1719352244754,-996.2,0.00016712,2]
[330407893,1719352244764,-500.0,0.00016712,2]
[330407895,1719352244774,-500.0,0.00016712,2]
[330407897,1719352244783,-641.4,0.00016843,2]
[330407899,1719352244793,-3275.40584699,0.00016922,2]
[330407901,1719352244802,-181.58035626,0.00016986,2]
[330407903,1719352244811,-500.0,0.00016986,2]
[330407905,1719352244824,-488.63102853,0.00016986,2]
[330407907,1719352244832,-500.0,0.00016986,2]
[330407909,1719352244842,-789.93,0.00016986,2]
[330407911,1719352244851,-500.0,0.00016986,2]
[330407913,1719352244862,-151.0,0.00016986,2]
[330407915,1719352244872,-500.0,0.00016986,2]
[330407917,1719352244880,-265.76143632,0.00016986,2]
[330407919,1719352244890,-710.53,0.00016986,2]
[330407921,1719352244900,-500.0,0.00016986,2]
[330407923,1719352244910,-500.0,0.00016986,2]
[330407928,1719352244948,-500.0,0.00016986,2]
[330407930,1719352244958,-500.0,0.00016986,2]
[330407932,1719352244966,-500.0,0.00016986,2]
[330407934,1719352244975,-594.6343846,0.00016986,2]
[330407936,1719352244985,-336.00619178,0.00016986,2]
[330407938,1719352244993,-547.54,0.00016986,2]
[330407940,1719352245002,-923.21,0.00016986,2]
[330407942,1719352245011,-351.73672325,0.00016986,2]
[330407944,1719352245020,-500.0,0.00016986,2]
[330407946,1719352245030,-500.0,0.00016986,2]
[330407947,1719352245039,-500.0,0.00016986,2]
[330407949,1719352245048,-500.0,0.00016986,2]
[330407951,1719352245057,-303.91092818,0.00016986,2]
[330407953,1719352245066,-500.0,0.00016986,2]
[330407955,1719352245075,-1176.72,0.00016986,2]
[330407957,1719352245084,-500.0,0.00016986,2]
[330407959,1719352245093,-500.0,0.00016986,2]
[330407961,1719352245101,-500.0,0.00016986,2]
[330407963,1719352245110,-949.66,0.00016986,2]
[330407965,1719352245120,-500.0,0.00016986,2]
[330407967,1719352245129,-510.02,0.00016986,2]
[330407969,1719352245139,-528.31,0.00016986,2]
[330407971,1719352245148,-832.07,0.00016986,2]
[330407973,1719352245157,-524.74292541,0.00016986,2]
[330407975,1719352245166,-500.0,0.00016986,2]
[330407977,1719352245175,-500.0,0.00016986,2]
[330407979,1719352245185,-1329.02,0.00016986,2]
[330407981,1719352245195,-500.0,0.00016986,2]
[330407983,1719352245205,-500.0,0.00016986,2]
[330407985,1719352245214,-500.0,0.00016986,2]
[330407987,1719352245224,-500.0,0.00016986,2]
[330407989,1719352245234,-11273.72,0.00016986,2]
[330407991,1719352245243,-500.0,0.00016986,2]
[330407993,1719352245252,-500.0,0.00016986,2]
[330407995,1719352245260,-500.0,0.00016986,2]
[330407997,1719352245269,-1154.45,0.00016986,2]
[330407999,1719352245279,-500.0,0.00016986,2]
[330408001,1719352245288,-4146.95,0.00016986,2]
[330408003,1719352245297,-1023.26,0.00016986,2]
[330408005,1719352245307,-55.27522737,0.00016986,2]
[330409044,1719353031350,24890.0,0.0001397,2]
[330409045,1719353044045,42185.65991976,0.00013999,2]
[330409046,1719353063354,201.92036557,0.0001397,2]
[330409047,1719353064780,180.57898176,0.0001397,2]
[330409048,1719353097909,154.83742071,0.0001397,2]
[330409049,1719353195913,173.49543079,0.0001397,2]
[330409056,1719353432102,-281.25522708,0.00014027,2]
[330409058,1719353432113,-154.83742071,0.00014324,2]
[330409060,1719353432123,-3527.80495197,0.00014325,2]
[330409065,1719353432236,-530.94475,0.00014325,2]
[330409457,1719353443345,-5070.45656463,0.00014325,2]
[330409458,1719353443354,-3074.84022806,0.00014507,2]
[330409459,1719353443363,-300.0,0.000146,2]
[330409460,1719353443372,-3074.84022806,0.00014608,2]
[330409461,1719353443382,-2079.13836266,0.00014999,2]
[330409462,1719353443394,-49.74674192,0.00014999,2]
[330409463,1719353443403,-519.98573171,0.00014999,2]
[330409464,1719353443412,-1117.87472833,0.00014999,2]
[330409465,1719353443421,-176.40354965,0.00015182,2]
[330409467,1719353443431,-175.97073239,0.00015759,2]
[330409468,1719353443440,-730.08869906,0.00015975,2]
[330409470,1719353443449,-164.83119203,0.00015988,2]
[330409472,1719353443458,-2015.23493618,0.00015988,2]
[330409481,1719353443543,-1769.6155797,0.00015988,2]
[330409484,1719353443556,-455.81107464,0.00015988,2]
[330409486,1719353443568,-451.51601229,0.00015988,2]
[330409489,1719353443579,-545.89534636,0.00015988,2]
[330409493,1719353443591,-377.95012059,0.00015988,2]
[330409700,1719353446365,-684.85097061,0.00015988,2]
[330409701,1719353446377,-19757.94532024,0.00015988,2]
[330409702,1719353446386,-180.0,0.0001606,2]
[330409703,1719353446395,-154.83742071,0.00016236,2]
[330409704,1719353446405,-973.71292551,0.00016237,2]
[330409705,1719353446414,-155.67984992,0.00016294,2]
[330409706,1719353446423,-4892.01370379,0.00016295,2]
[330409707,1719353446432,-154.83742071,0.00016296,2]
[330409708,1719353446442,-154.83742071,0.00016347,2]
[330409709,1719353446451,-307.5621653,0.00016348,2]
[330409710,1719353446460,-7541.15,0.00016438,2]
[330409711,1719353446471,-500.0,0.00016438,2]
[330409712,1719353446481,-1121.96,0.00016438,2]
[330409713,1719353446490,-606.0479147,0.00016438,2]
[330409715,1719353446499,-802.32,0.00016438,2]
[330409717,1719353446508,-500.0,0.00016438,2]
[330409719,1719353446517,-500.0,0.00016438,2]
[330409721,1719353446526,-500.0,0.00016438,2]
[330409723,1719353446536,-533.21,0.00016438,2]
[330409725,1719353446545,-500.0,0.00016438,2]
[330409726,1719353446554,-500.0,0.00016438,2]
[330409728,1719353446563,-817.47,0.00016438,2]
[330409730,1719353446575,-500.0,0.00016438,2]
[330409732,1719353446584,-500.0,0.00016438,2]
[330409734,1719353446595,-500.0,0.00016438,2]
[330409736,1719353446604,-500.0,0.00016438,2]
[330409738,1719353446614,-500.0,0.00016438,2]
[330409740,1719353446624,-500.0,0.00016438,2]
[330409741,1719353446633,-527.18,0.00016438,2]
[330409743,1719353446642,-17889.97,0.00016438,2]
[330409745,1719353446651,-500.0,0.00016438,2]
[330409746,1719353446660,-500.0,0.00016438,2]
[330409747,1719353446669,-500.0,0.00016438,2]
[330409749,1719353446680,-500.0,0.00016438,2]
[330409751,1719353446689,-500.0,0.00016438,2]
[330409753,1719353446698,-500.0,0.00016438,2]
[330409755,1719353446707,-978.94,0.00016438,2]
[330409757,1719353446716,-500.0,0.00016438,2]
[330409759,1719353446726,-500.0,0.00016438,2]
[330409761,1719353446736,-500.0,0.00016438,2]
[330409763,1719353446745,-500.0,0.00016438,2]
[330409765,1719353446754,-500.0,0.00016438,2]
[330409767,1719353446764,-1499.5,0.00016438,2]
[330409769,1719353446774,-500.0,0.00016438,2]
[330409771,1719353446783,-500.0,0.00016438,2]
[330409773,1719353446792,-888.24,0.00016438,2]
[330409775,1719353446801,-500.0,0.00016438,2]
[330409777,1719353446809,-500.0,0.00016438,2]
[330409778,1719353446818,-500.0,0.00016438,2]
[330409780,1719353446827,-500.0,0.00016438,2]
[330409782,1719353446837,-529.01985892,0.00016438,2]
[330409784,1719353446846,-440.04209582,0.00016438,2]
[330409786,1719353446854,-500.0,0.00016438,2]
[330409788,1719353446864,-1132.15,0.00016438,2]
[330409790,1719353446872,-500.0,0.00016438,2]
[330409792,1719353446881,-500.0,0.00016438,2]
[330409794,1719353446890,-870.52,0.00016438,2]
[330409795,1719353446899,-500.0,0.00016438,2]
[330409797,1719353446908,-500.0,0.00016438,2]
[330409799,1719353446917,-500.0,0.00016438,2]
[330409801,1719353446927,-610.39,0.00016438,2]
[330409818,1719353447080,-500.0,0.00016438,2]
[330409820,1719353447089,-500.0,0.00016438,2]
[330409822,1719353447100,-500.0,0.00016438,2]
[330409824,1719353447109,-500.0,0.00016438,2]
[330409826,1719353447118,-500.0,0.00016438,2]
[330409827,1719353447128,-720.98,0.00016438,2]
[330409829,1719353447137,-500.0,0.00016438,2]
[330409831,1719353447146,-500.0,0.00016438,2]
[330409833,1719353447155,-500.0,0.00016438,2]
[330409835,1719353447164,-500.0,0.00016438,2]
[330409837,1719353447174,-1267.4,0.00016438,2]
[330409839,1719353447183,-501.75,0.00016438,2]
[330409841,1719353447192,-500.0,0.00016438,2]
[330409843,1719353447202,-1089.58,0.00016438,2]
[330409845,1719353447211,-500.0,0.00016438,2]
[330409847,1719353447222,-514.04,0.00016438,2]
[330409849,1719353447231,-500.0,0.00016438,2]
[330409851,1719353447246,-500.0,0.00016438,2]
[330409853,1719353447255,-250.0,0.00016438,2]
[330409855,1719353447263,-500.0,0.00016438,2]
[330409857,1719353447273,-500.0,0.00016438,2]
[330409859,1719353447282,-500.0,0.00016438,2]
[330409861,1719353447291,-500.0,0.00016438,2]
[330409863,1719353447300,-500.0,0.00016438,2]
[330409864,1719353447309,-500.0,0.00016438,2]
[330409866,1719353447323,-500.0,0.00016438,2]
[330409868,1719353447333,-500.0,0.00016438,2]
[330409870,1719353447343,-500.0,0.00016438,2]